{"text_format":"3","workbook":"xlsx","n_sheets":6,"sheets":["Fragebogen","Bearbeitung","Berechnung","Wegleitung","Sachbearbeiter","Textkonserven"],"not_rendered":{"images":4,"defined_names":4,"comments":1},"read":"whole","date_system":"1900"}

{"sheet":"Fragebogen","index":0,"n_rows":114,"n_cols":18,"rows_kept":114,"merged":[[0,0,1,0],[0,1,0,2],[0,4,0,13],[1,1,1,13],[2,11,2,13],[3,11,3,13],[4,0,10,0],[4,11,4,13],[5,10,5,13],[6,1,6,3],[6,4,6,5],[7,10,7,13],[8,10,8,13],[9,10,9,13],[10,1,10,13],[11,1,11,13],[12,2,12,13],[13,2,13,4],[13,5,13,7],[13,9,13,13],[14,2,14,4],[14,5,14,13],[15,2,15,4],[15,7,15,13],[16,2,16,4],[16,5,16,6],[16,9,16,13],[17,2,17,4],[17,5,17,9],[17,11,17,12],[18,2,18,4],[18,11,18,12],[19,2,19,4],[19,7,19,9],[19,12,19,13],[21,2,21,13],[22,2,22,4],[22,6,22,13],[25,2,25,5],[25,6,25,7],[25,10,25,11],[25,12,25,13],[26,2,26,9],[26,10,26,11],[26,12,26,13],[27,2,27,9],[27,10,27,11],[27,12,27,13],[28,2,28,9],[28,10,28,11],[28,12,28,13],[29,2,29,9],[29,10,29,11],[29,12,29,13],[30,2,30,9],[30,10,30,11],[30,12,30,13],[31,2,31,9],[31,10,31,11],[31,12,31,13],[32,2,32,4],[32,7,32,9],[32,12,32,13],[34,1,34,13],[35,2,35,7],[36,2,36,13],[37,2,37,13],[38,2,38,4],[38,7,38,9],[38,12,38,13],[40,1,40,12],[40,13,41,13],[41,2,41,12],[42,3,42,12],[43,3,43,12],[44,3,44,12],[45,3,45,12],[46,3,46,12],[47,3,47,12],[48,3,48,12],[49,3,49,12],[50,1,50,10],[51,2,51,12],[52,3,52,12],[53,3,53,12],[54,3,54,12],[55,3,55,12],[58,3,58,12],[59,3,59,12],[71,3,71,12],[72,3,72,12],[73,3,73,12],[74,3,74,12],[75,3,75,12],[76,3,76,12],[77,1,77,12],[78,2,78,12],[79,3,79,12],[80,3,80,12],[81,3,81,12],[82,3,82,4],[82,5,82,12],[83,3,83,4],[83,5,83,12],[84,3,84,4],[84,5,84,12],[85,3,85,4],[85,5,85,12],[86,3,86,12],[87,3,87,12],[88,1,88,12],[89,2,89,12],[90,3,90,4],[90,5,90,12],[91,3,91,4],[91,5,91,12],[92,3,92,4],[92,5,92,12],[93,3,93,4],[93,5,93,12],[94,3,94,4],[94,5,94,12],[95,3,95,4],[95,5,95,12],[96,3,96,4],[96,5,96,12],[97,3,97,4],[97,5,97,12],[98,3,98,4],[98,5,98,12],[99,3,99,4],[99,5,99,12],[100,3,100,4],[100,5,100,12],[101,3,101,4],[101,5,101,12],[102,3,102,4],[102,5,102,12],[103,3,103,4],[103,5,103,12],[104,3,104,4],[104,5,104,12],[105,3,105,4],[105,5,105,12],[106,3,106,12],[107,1,107,12],[108,1,108,11],[109,1,109,13],[111,1,111,13],[113,1,113,3],[113,4,113,5],[113,7,113,8],[113,10,113,11]]}
[{"$nulls":4},"Steuerverwaltung des Kantons Graubünden  \nAdministraziun da taglia dal Chantun Grischun     \nAmministrazione imposte del Cantone dei Grigioni "]
[null,"Abteilung Rechnungswesen, Steinbruchstrasse 18, CH-7001 Chur    "]
[{"$f":"Bearbeitung!A3","v":"rw"},"Verantwortlich:",null,null,{"$f":"VLOOKUP($A$3,Sachbearbeiter!$A:$E,2,FALSE)","v":"Rechnungswesen"},{"$nulls":5},"Tel:",{"$f":"VLOOKUP($A$3,Sachbearbeiter!$A:$E,3,FALSE)","v":"081 257 33 18"}]
[{"$f":"Bearbeitung!A4","v":"e"},"Mail:",null,null,{"$f":"VLOOKUP($A$3,Sachbearbeiter!$A:$E,5,FALSE)","v":"rechnungswesen@stv.gr.ch"},{"$nulls":5},"Fax:",{"$f":"VLOOKUP($A$3,Sachbearbeiter!$A:$E,4,FALSE)","v":"081 257 20 14"}]
[{"$nulls":10},"Datum:"]
[]
[null,{"$f":"VLOOKUP(A4,Textkonserven!A:D,4,FALSE)","v":"Register-Nr. "},{"$nulls":8},"Steuerverwaltung des Kant. Graubünden"]
[{"$nulls":10},{"$f":"\"z.H.\" &\" \"&E3","v":"z.H. Rechnungswesen"}]
[{"$nulls":10},"Steinbruchstrasse 18"]
[{"$nulls":10},"7001 Chur"]
[null,{"$f":"VLOOKUP(A4,Textkonserven!A:B,2,FALSE)","v":"Überprüfung der Vermögens- und Erwerbsverhältnisse im Zusammenhang mit einem Erlassgesuch für Steuerforderungen"}]
[]
[null,"1.",{"$f":"VLOOKUP(A4,Textkonserven!A:I,9,FALSE)","v":"Personalien Pflichtige/r"}]
[null,null,"Name / Vorname",{"$nulls":5},"/"]
[null,null,"Adresse"]
[null,null,"PLZ / Ort",{"$nulls":3},"/"]
[null,null,"Geburtsdatum"]
[null,null,"Arbeitgeber",null,null," ",{"$nulls":4},"/","Arbeitsort "]
[null,null,"Arbeitspensum in %"]
[]
[]
[null,"2.","Anzahl Personen im gleichen Haushalt lebend (siehe Wegleitung)"]
[null,null,"Anzahl Erwachsene:"]
[0,null,"Lebenssituation: "]
[]
[null,null,"Name der Kinder des Antragstellers",{"$nulls":7},"Geburtstag",null,"Bemerkungen",null,"Anzahl Jahre zwischen heute und Geburtstag"]
[{"$nulls":12},{"$f":"IF(AND(K27>0,O27>18),(\">> Kind gilt als erwachsene Person! <<\"),\"\")","v":""},null,{"$f":"IF(K27>0,DAYS360(K27,L$5,TRUE)/360,\" \")","v":" "},null,null,{"$f":"IF(N27>0,DAYS360(L$5,N27,TRUE)/360,\" \")","v":" "}]
[{"$nulls":12},{"$f":"IF(AND(K28>0,O28>18),(\">> Kind gilt als erwachsene Person! <<\"),\"\")","v":""},null,{"$f":"IF(K28>0,DAYS360(K28,L$5,TRUE)/360,\" \")","v":" "},null,null,{"$f":"IF(N28>0,DAYS360(L$5,N28,TRUE)/360,\" \")","v":" "}]
[{"$nulls":12},"",null," ",null,null,{"$f":"IF(N29>0,DAYS360(L$5,N29,TRUE)/360,\" \")","v":" "}]
[{"$nulls":12},"",null," ",null,null," "]
[{"$nulls":12},"",null," ",null,null,{"$f":"IF(N31>0,DAYS360(L$5,N31,TRUE)/360,\" \")","v":" "}]
[{"$nulls":12},"",null," ",null,null,{"$f":"IF(N32>0,DAYS360(L$5,N32,TRUE)/360,\" \")","v":" "}]
[]
[]
[null,"Fragen zur finanziellen Situation"]
[0,null,"Sind sie in einer laufenden Pfändung?"]
[null,null,"Wenn ja, stellen Sie uns eine vollständige Kopie der aktuellsten Pfändungsurkunde inkl. Existenzminimumberechnung, zusammen mit dem unterschriebenen Fragebogen zu. Die nachfolgenden Frageblöcke 3 - 6 für das Monatsbudget müssen Sie nicht mehr ausfüllen."]
[null,null,"Wenn nein, füllen Sie bitte die nachfolgenden Frageblöcke für das Monatsbudget 3 - 6 aus."]
[]
[]
[null,"Monatsbudget",{"$nulls":11},"in CHF"]
[null,"3.","Einkünfte pro Monat"]
[null,null,3.1,"Nettolohn II gemäss Lohnausweis"]
[null,null,3.2,"Weitere Einkünfte (Nebenerwerb, Naturalbezüge, Mieteinnahmen, Reisespesen, etc.)"]
[null,null,3.3,"Ersatzeinkommen (AHV/IV, ALV, Pensionskasse, andere Renten)"]
[null,null,3.4,"Ergänzungsleistungen AHV/IV"]
[null,null,3.5,"Unterhalts- / Unterstützungsbeiträge",null,1]
[null,null,3.6,"Vermögenserträge (Wertschriften und Kontoguthaben)"]
[null,null,3.7,"Prämienverbilligung Krankenkasse (IPV)"]
[]
[]
[null,"4.","Auslagen pro Monat",{"$nulls":10},"in CHF"]
[null,null,4.1,"Als Grundbetrag für Ernährung, Kleider, Gesundheit, Erholung, Telefon, usw. wird seitens Steuerverwaltung eine Pauschale errechnet, ebenso für die Kinder des Antragstellers. "]
[null,null,4.2,"Unterhalts- / Unterstützungsbeiträge"]
[null,null,"4.3","Entweder Mietzins inkl. Akontozahlungen für Heiz- und Nebenkosten"]
[null,null,"4.4","oder Hypothekarzins (ohne Amortisation!)\ninkl. öffentlich rechtliche Abgaben und Unterhaltskosten für die Liegenschaft"]
[null,null,"4.5","Krankenkasse (Grundversicherung)"]
[null,null,"4.6","Sozialbeiträge, sofern nicht bereits vom Lohn abgezogen"]
[null,null,"4.7","Laufende Steuern (Bund, Kanton und Gemeinde) umgerechnet auf 1 Monat"]
[null,null,"4.8","Notwendige Berufsauslagen für Fahrkosten"]
[0,null,null,"Transportmittel:"]
[]
[]
[{"$nulls":4},"Arbeitsweg für Privatfahrzeug mit Kompetenzqualität (siehe Wegleitung)"]
[{"$nulls":4},"- Kilometer / Weg (Fahrt)"]
[{"$nulls":4},"- Anzahl Fahrten / Tag"]
[{"$nulls":4},"- Anzahl Arbeitstage / Monat (max. 20)"]
[]
[]
[]
[]
[null,null,"4.9","Notwendige Berufsauslagen für auswärtige Verpflegung"]
[null,null,"4.10","Miet- / Leasing-Kosten unverzichtbarer Gegenstände zur Ausübung der Erwerbstätigkeit"]
[null,null,"4.11","Darlehen- und Schuldenrückzahlungen"]
[null,null,"4.12","Diverse Ausgaben"]
[{"$nulls":3}," "]
[]
[]
[null,"5.","Vermögenswerte",{"$nulls":10},"in CHF"]
[null,null,5.1,"Wertschriften (Konti, Obligationen, Aktien, etc.)"]
[null,null,"5.2","Lebensversicherungen (Rückkaufswerte)"]
[null,null,"5.3","Liegenschaften (Verkehrswert nach amtlicher Schatzung)"]
[null,null,"5.3a","Parzellen-Nr.:"]
[{"$nulls":3},"Adresse:    "]
[null,null,"5.3b","Parzellen-Nr.:"]
[{"$nulls":3},"Adresse:    "]
[null,null,"5.4","Weiteres Vermögen (Beteiligungen, unverteilte Erbschaften, usw.)"]
[]
[{"$nulls":13},{"$f":"SUM(N80:N87)","v":0}]
[null,"6.","Schulden",{"$nulls":10},"in CHF"]
[null,null,"6.1","Art:"]
[{"$nulls":3},"Gläubiger"]
[null,null,"6.2","Art:"]
[{"$nulls":3},"Gläubiger"]
[null,null,"6.3","Art:"]
[{"$nulls":3},"Gläubiger"]
[null,null,"6.4","Art:"]
[{"$nulls":3},"Gläubiger"]
[null,null,"6.5","Art:"]
[{"$nulls":3},"Gläubiger"]
[null,null,"6.6","Art:"]
[{"$nulls":3},"Gläubiger"]
[null,null,"6.7","Art:"]
[{"$nulls":3},"Gläubiger"]
[null,null,"6.8","Art:"]
[{"$nulls":3},"Gläubiger"]
[]
[{"$nulls":13},{"$f":"SUM(N91:N106)","v":0}]
[null,{"$f":"IF(OR($A$4=\"v\",$A$4=\"e\"),Textkonserven!$J$4,\"\")","v":"Leisten (nicht privilegierte) Gläubiger Forderungsverzicht?  Ja / Nein:"},{"$nulls":10},{"$f":"IF(OR($A$4=\"v\",$A$4=\"e\"),\"___\",\"\")","v":"___"}]
[null,{"$f":"IF(OR($A$4=\"v\",$A$4=\"e\"),Textkonserven!$K$5,\"\")","v":"(Wenn ja, Sanierungsplan und Belege beifügen) "}]
[]
[null,"Der/Die Unterzeichnende bestätigt die Vollständigkeit und Wahrheit der gemachten Angaben."]
[]
[null,"Ort / Datum",{"$nulls":4},"/",{"$nulls":3},"Unterschrift:"]

{"sheet":"Bearbeitung","index":1,"n_rows":113,"n_cols":16,"rows_kept":113,"hidden":true,"merged":[[0,0,1,0],[0,1,0,2],[0,4,0,13],[1,1,1,13],[2,11,2,13],[3,11,3,13],[4,0,10,0],[4,11,4,13],[5,10,5,13],[6,1,6,3],[6,4,6,5],[6,10,6,13],[7,10,7,13],[8,10,8,13],[9,10,9,13],[10,1,10,13],[11,1,11,13],[12,2,12,13],[13,2,13,4],[13,5,13,7],[13,9,13,13],[14,2,14,4],[14,5,14,13],[15,2,15,4],[15,7,15,13],[16,2,16,4],[16,5,16,6],[16,9,16,13],[17,2,17,4],[17,5,17,9],[17,11,17,12],[18,2,18,4],[18,11,18,12],[19,2,19,4],[19,7,19,9],[19,12,19,13],[21,2,21,13],[22,2,22,4],[22,6,22,13],[23,2,23,5],[23,6,23,7],[23,10,23,11],[23,12,23,13],[24,2,24,9],[24,10,24,11],[24,12,24,13],[25,2,25,9],[25,10,25,11],[25,12,25,13],[26,2,26,9],[26,10,26,11],[26,12,26,13],[27,2,27,9],[27,10,27,11],[27,12,27,13],[28,2,28,9],[28,10,28,11],[28,12,28,13],[29,2,29,9],[29,10,29,11],[29,12,29,13],[30,2,30,4],[30,7,30,9],[30,12,30,13],[32,1,32,13],[33,2,33,7],[34,2,34,13],[35,2,35,13],[36,2,36,4],[36,7,36,9],[36,12,36,13],[38,1,38,12],[38,13,39,13],[39,2,39,12],[40,3,40,12],[41,3,41,12],[42,3,42,12],[43,3,43,12],[44,3,44,12],[45,3,45,12],[46,3,46,12],[47,3,47,12],[48,1,48,10],[49,2,49,12],[50,3,50,12],[51,11,51,12],[52,11,52,12],[53,3,53,7],[53,11,53,12],[54,4,54,5],[54,6,54,7],[54,11,54,12],[55,3,55,12],[56,3,56,12],[57,3,57,12],[58,3,58,12],[59,3,59,12],[60,3,60,12],[61,3,61,12],[73,3,73,12],[74,3,74,12],[75,3,75,12],[76,3,76,12],[77,3,77,12],[78,3,78,12],[79,1,79,12],[80,2,80,12],[81,3,81,12],[82,3,82,12],[83,3,83,12],[84,3,84,4],[84,5,84,12],[85,3,85,4],[85,5,85,12],[86,3,86,4],[86,5,86,12],[87,3,87,4],[87,5,87,12],[88,3,88,12],[89,3,89,12],[90,1,90,12],[91,2,91,12],[92,3,92,4],[92,5,92,12],[93,3,93,4],[93,5,93,12],[94,3,94,4],[94,5,94,12],[95,3,95,4],[95,5,95,12],[96,3,96,4],[96,5,96,12],[97,3,97,4],[97,5,97,12],[98,3,98,4],[98,5,98,12],[99,3,99,4],[99,5,99,12],[100,3,100,4],[100,5,100,12],[101,3,101,4],[101,5,101,12],[102,3,102,4],[102,5,102,12],[103,3,103,4],[103,5,103,12],[104,3,104,4],[104,5,104,12],[105,3,105,4],[105,5,105,12],[106,3,106,4],[106,5,106,12],[107,3,107,4],[107,5,107,12],[108,3,108,12],[109,1,109,12],[110,1,110,11],[112,1,112,3],[112,4,112,13],[113,1,113,13]]}
["Sachbearbeiter",{"$nulls":3},"Steuerverwaltung des Kantons Graubünden  \nAdministraziun da taglia dal Chantun Grischun     \nAmministrazione imposte del Cantone dei Grigioni ",{"$nulls":9},"Bemerkungen intern, ohne Anzeige an den Kunden"]
[null,"Abteilung Rechnungswesen, Steinbruchstrasse 18, CH-7001 Chur    "]
["rw","Sachbearbeiter:",null,null,{"$f":"VLOOKUP($A$3,Sachbearbeiter!$A:$E,2,FALSE)","v":"Rechnungswesen"},{"$nulls":5},"Tel:",{"$f":"VLOOKUP($A$3,Sachbearbeiter!$A:$E,3,FALSE)","v":"081 257 33 18"}]
["e","Mail:",null,null,{"$f":"VLOOKUP($A$3,Sachbearbeiter!$A:$E,5,FALSE)","v":"rechnungswesen@stv.gr.ch"},{"$nulls":5},"Fax:",{"$f":"VLOOKUP($A$3,Sachbearbeiter!$A:$E,4,FALSE)","v":"081 257 20 14"}]
["Sachgebiet: u=URP / v=VS / e= Erlasss",{"$nulls":9},"Datum:",{"$f":"IF(Fragebogen!L5:N5<>0,Fragebogen!L5:N5,\"\")","v":""}]
[]
[null,{"$f":"VLOOKUP(A4,Textkonserven!A:D,4,FALSE)","v":"Register-Nr. "},null,null,{"$f":"IF(Fragebogen!E7:F7<>0,Fragebogen!E7:F7,\"\")","v":""},{"$nulls":5},{"$f":"Fragebogen!K7","v":"Steuerverwaltung des Kant. Graubünden"}]
[{"$nulls":10},{"$f":"Fragebogen!K8","v":"z.H. Rechnungswesen"}]
[{"$nulls":10},{"$f":"Fragebogen!K9","v":"Steinbruchstrasse 18"}]
[{"$nulls":10},{"$f":"Fragebogen!K10","v":"7001 Chur"}]
[null,{"$f":"VLOOKUP(A4,Textkonserven!A:B,2,FALSE)","v":"Überprüfung der Vermögens- und Erwerbsverhältnisse im Zusammenhang mit einem Erlassgesuch für Steuerforderungen"}]
[]
[null,"1.",{"$f":"VLOOKUP(A4,Textkonserven!A:I,9,FALSE)","v":"Personalien Pflichtige/r"}]
[null,null,{"$f":"Fragebogen!C14","v":"Name / Vorname"},null,null,{"$f":"IF(Fragebogen!F14:H14<>0,Fragebogen!F14:H14,\"\")","v":""},null,null,"/",{"$f":"IF(Fragebogen!J14:N14<>0,Fragebogen!J14:N14,\"\")","v":""}]
[null,null,{"$f":"Fragebogen!C15","v":"Adresse"},null,null,{"$f":"IF(Fragebogen!F15:N15<>0,Fragebogen!F15:N15,\"\")","v":""}]
[null,null,{"$f":"Fragebogen!C16","v":"PLZ / Ort"},null,null,{"$f":"IF(Fragebogen!F16<>0,Fragebogen!F16,\"\")","v":""},"/",{"$f":"IF(Fragebogen!H16:N16<>0,Fragebogen!H16:N16,\"\")","v":""}]
[null,null,{"$f":"Fragebogen!C17","v":"Geburtsdatum"},null,null,{"$f":"IF(Fragebogen!F17:G17<>0,Fragebogen!F17:G17,\"\")","v":""}]
[null,null,{"$f":"Fragebogen!C18","v":"Arbeitgeber"},null,null,{"$f":"IF(Fragebogen!F18:J18<>0,Fragebogen!F18:J18,\"\")","v":" "},{"$nulls":4},"/",{"$f":"Fragebogen!L18","v":"Arbeitsort "},null,{"$f":"IF(Fragebogen!N18:N18<>0,Fragebogen!N18:N18,\"\")","v":""}]
[null,null,{"$f":"Fragebogen!C19","v":"Arbeitspensum in %"},null,null,{"$f":"IF(Fragebogen!F19<>0,Fragebogen!F19,\"\")","v":""}]
[]
[]
[null,"2.",{"$f":"Fragebogen!C22","v":"Anzahl Personen im gleichen Haushalt lebend (siehe Wegleitung)"}]
[null,null,{"$f":"Fragebogen!C23","v":"Anzahl Erwachsene:"},null,null,{"$f":"IF(Fragebogen!F23<>0,Fragebogen!F23,\"\")","v":""}]
[null,null,{"$f":"Fragebogen!C26","v":"Name der Kinder des Antragstellers"},{"$nulls":7},{"$f":"Fragebogen!K26","v":"Geburtstag"},null,{"$f":"Fragebogen!M26","v":"Bemerkungen"},null,"Alter"]
[null,null,{"$f":"IF(Fragebogen!C27:J27<>0,Fragebogen!C27:J27,\"\")","v":""},{"$nulls":7},{"$f":"IF(Fragebogen!K27:L27>0,Fragebogen!K27:L27,0)","v":"00:00:00"},null,{"$f":"IF(Fragebogen!M27<>\"\",IF(AND(K25>0,O25>18),(\">> Kind gilt als erwachsene Person! <<\"),Fragebogen!M27),\"\")","v":""},null,{"$f":"IF(K25>0,DAYS360(K25,L$5,TRUE)/360,\" \")","v":" "}]
[null,null,{"$f":"IF(Fragebogen!C28:J28<>0,Fragebogen!C28:J28,\"\")","v":""},{"$nulls":7},{"$f":"IF(Fragebogen!K28:L28>0,Fragebogen!K28:L28,0)","v":"00:00:00"},null,{"$f":"IF(Fragebogen!M28<>\"\",IF(AND(K26>0,O26>18),(\">> Kind gilt als erwachsene Person! <<\"),Fragebogen!M28),\"\")","v":""},null,{"$f":"IF(K26>0,DAYS360(K26,L$5,TRUE)/360,\" \")","v":" "}]
[null,null,{"$f":"IF(Fragebogen!C29:J29<>0,Fragebogen!C29:J29,\"\")","v":""},{"$nulls":7},{"$f":"IF(Fragebogen!K29:L29>0,Fragebogen!K29:L29,0)","v":"00:00:00"},null,{"$f":"IF(Fragebogen!M29<>\"\",IF(AND(K27>0,O27>18),(\">> Kind gilt als erwachsene Person! <<\"),Fragebogen!M29),\"\")","v":""},null,{"$f":"IF(K27>0,DAYS360(K27,L$5,TRUE)/360,\" \")","v":" "}]
[null,null,{"$f":"IF(Fragebogen!C30:J30<>0,Fragebogen!C30:J30,\"\")","v":""},{"$nulls":7},{"$f":"IF(Fragebogen!K30:L30>0,Fragebogen!K30:L30,0)","v":"00:00:00"},null,{"$f":"IF(Fragebogen!M30<>\"\",IF(AND(K28>0,O28>18),(\">> Kind gilt als erwachsene Person! <<\"),Fragebogen!M30),\"\")","v":""},null," "]
[null,null,{"$f":"IF(Fragebogen!C31:J31<>0,Fragebogen!C31:J31,\"\")","v":""},{"$nulls":7},{"$f":"IF(Fragebogen!K31:L31>0,Fragebogen!K31:L31,0)","v":"00:00:00"},null,{"$f":"IF(Fragebogen!M31<>\"\",IF(AND(K29>0,O29>18),(\">> Kind gilt als erwachsene Person! <<\"),Fragebogen!M31),\"\")","v":""},null,{"$f":"IF(K29>0,DAYS360(K29,L$5,TRUE)/360,\" \")","v":" "}]
[null,null,{"$f":"IF(Fragebogen!C32:J32<>0,Fragebogen!C32:J32,\"\")","v":""},{"$nulls":7},{"$f":"IF(Fragebogen!K32:L32>0,Fragebogen!K32:L32,0)","v":"00:00:00"},null,{"$f":"IF(Fragebogen!M32<>\"\",IF(AND(K30>0,O30>18),(\">> Kind gilt als erwachsene Person! <<\"),Fragebogen!M32),\"\")","v":""},null,{"$f":"IF(K30>0,DAYS360(K30,L$5,TRUE)/360,\" \")","v":" "}]
[]
[]
[null,{"$f":"Fragebogen!B35","v":"Fragen zur finanziellen Situation"}]
[{"$f":"Fragebogen!A36","v":0},null,{"$f":"Fragebogen!C36","v":"Sind sie in einer laufenden Pfändung?"}]
[null,null,{"$f":"Fragebogen!C37","v":"Wenn ja, stellen Sie uns eine vollständige Kopie der aktuellsten Pfändungsurkunde inkl. Existenzminimumberechnung, zusammen mit dem unterschriebenen Fragebogen zu. Die nachfolgenden Frageblöcke 3 - 6 für das Monatsbudget müssen Sie nicht mehr ausfüllen."}]
[null,null,{"$f":"Fragebogen!C38","v":"Wenn nein, füllen Sie bitte die nachfolgenden Frageblöcke für das Monatsbudget 3 - 6 aus."}]
[]
[]
[null,{"$f":"Fragebogen!B41","v":"Monatsbudget"},{"$nulls":11},{"$f":"Fragebogen!N41","v":"in CHF"}]
[null,"3.",{"$f":"Fragebogen!C42","v":"Einkünfte pro Monat"}]
[null,null,{"$f":"Fragebogen!C43","v":3.1},{"$f":"Fragebogen!D43","v":"Nettolohn II gemäss Lohnausweis"},{"$nulls":9},{"$f":"Fragebogen!N43","v":0}]
[null,null,{"$f":"Fragebogen!C44","v":3.2},{"$f":"Fragebogen!D44","v":"Weitere Einkünfte (Nebenerwerb, Naturalbezüge, Mieteinnahmen, Reisespesen, etc.)"},{"$nulls":9},{"$f":"Fragebogen!N44","v":0}]
[null,null,{"$f":"Fragebogen!C45","v":3.3},{"$f":"Fragebogen!D45","v":"Ersatzeinkommen (AHV/IV, ALV, Pensionskasse, andere Renten)"},{"$nulls":9},{"$f":"Fragebogen!N45","v":0}]
[null,null,{"$f":"Fragebogen!C46","v":3.4},{"$f":"Fragebogen!D46","v":"Ergänzungsleistungen AHV/IV"},{"$nulls":9},{"$f":"Fragebogen!N46","v":0}]
[null,null,{"$f":"Fragebogen!C47","v":3.5},{"$f":"Fragebogen!D47","v":"Unterhalts- / Unterstützungsbeiträge"},{"$nulls":9},{"$f":"Fragebogen!N47","v":0}]
[null,null,{"$f":"Fragebogen!C48","v":3.6},{"$f":"Fragebogen!D48","v":"Vermögenserträge (Wertschriften und Kontoguthaben)"},{"$nulls":9},{"$f":"Fragebogen!N48","v":0}]
[null,null,{"$f":"Fragebogen!C49","v":3.7},{"$f":"Fragebogen!D49","v":"Prämienverbilligung Krankenkasse (IPV)"},{"$nulls":9},{"$f":"Fragebogen!N49","v":0}]
[]
[]
[null,"4.","Auslagen pro Monat",{"$nulls":10},{"$f":"Fragebogen!N52","v":"in CHF"}]
[null,null,{"$f":"Fragebogen!C53","v":4.1},"Grundbetrag für Ernährung, Kleider, Gesundheit, Erholung, Telefon, usw."]
[{"$f":"IF(AND(Fragebogen!A24=1,D55+I55=0),1,IF(AND(Fragebogen!A24=1,D55+I55>0),2,IF(AND(Fragebogen!A24=2,D55+I55=0),1,IF(AND(Fragebogen!A24=2,D55+I55>0),3))))","v":false},{"$nulls":10},{"v":1200,"d":"CHF 1,200"},null,{"$f":"IF($A$52=1,L52,\"\")","v":""},"=WENN(UND(Fragebogen!A24=1;D55+I55=0);1;WENN(UND(Fragebogen!A24=1;D55+I55>0);2;WENN(UND(Fragebogen!A24=2;D55+I55=0);1;WENN(UND(Fragebogen!A24=2;D55+I55>0);3))))"]
[{"$nulls":11},{"v":1350,"d":"CHF 1,350"},null,{"$f":"IF($A$52=2,L53,\"\")","v":""}]
[{"$nulls":4},1,{"$nulls":6},{"$f":"IF(A4=\"u\",850,IF(A4=\"a\",850,1700))","v":{"v":1700,"d":"CHF 1,700"}},null,{"$f":"IF($A$52=3,L54,\"\")","v":""}]
[{"$nulls":3},{"$f":"COUNTIF(O25:O30,\"<=9.9999\")","v":0},"Kinder bis 10 Jahre:",null,{"v":400,"d":"CHF 400"},null,{"$f":"COUNTIFS(O25:O30,\">9.9999\",O25:O30,\"<=18\")","v":0},"über 10 Jahre",null,{"v":600,"d":"CHF 600"},null,{"$f":"IF(OR(D55>0,I55>0),(D55*G55)+(I55*L55),0)","v":0}]
[null,null,{"$f":"Fragebogen!C54","v":4.2},{"$f":"Fragebogen!D54","v":"Unterhalts- / Unterstützungsbeiträge"},{"$nulls":9},{"$f":"Fragebogen!N54","v":0}]
[null,null,{"$f":"Fragebogen!C55","v":"4.3"},{"$f":"Fragebogen!D55","v":"Entweder Mietzins inkl. Akontozahlungen für Heiz- und Nebenkosten"},{"$nulls":9},{"$f":"Fragebogen!N55","v":0}]
[null,null,{"$f":"Fragebogen!C56","v":"4.4"},{"$f":"Fragebogen!D56","v":"oder Hypothekarzins (ohne Amortisation!)\ninkl. öffentlich rechtliche Abgaben und Unterhaltskosten für die Liegenschaft"},{"$nulls":9},{"$f":"Fragebogen!N56","v":0}]
[null,null,{"$f":"Fragebogen!C57","v":"4.5"},{"$f":"Fragebogen!D57","v":"Krankenkasse (Grundversicherung)"},{"$nulls":9},{"$f":"Fragebogen!N57","v":0}]
[null,null,{"$f":"Fragebogen!C58","v":"4.6"},{"$f":"Fragebogen!D58","v":"Sozialbeiträge, sofern nicht bereits vom Lohn abgezogen"},{"$nulls":9},{"$f":"Fragebogen!N58","v":0}]
[null,null,{"$f":"Fragebogen!C59","v":"4.7"},{"$f":"Fragebogen!D59","v":"Laufende Steuern (Bund, Kanton und Gemeinde) umgerechnet auf 1 Monat"},{"$nulls":9},{"$f":"Fragebogen!N59","v":0}]
[null,null,{"$f":"Fragebogen!C60","v":"4.8"},{"$f":"Fragebogen!D60","v":"Notwendige Berufsauslagen für Fahrkosten"},{"$nulls":10},"Konstante: CHF Betrag / Km",{"v":0.7,"d":"0.70"}]
[{"$f":"Fragebogen!A61","v":0},null,null,"Transportmittel:",{"$nulls":10},"Konstante: CHF Betrag GA 2. Klasse / Jahr",{"v":3860,"d":"3,860.00"}]
[{"$nulls":13},{"$f":"IF(A63=1,IF(P70>P68,P68,P70),0)","v":0},"Konstante: Max. CHF Betrag für Fzg mit Kompetenzqualität / Jahr",{"v":10500,"d":"10,500.00"}]
[{"$nulls":13},{"$f":"IF(A63=2,IF(P71>=P69,P69,P71),0)","v":0},"Konstante: Max. Anzahl Arbeitstage / Monat",{"v":20,"d":"20.00"}]
[{"$nulls":4},"Arbeitsweg für Privatfahrzeug mit Kompetenzqualität 1)",{"$nulls":9},"Konstante: Mofa pauschal pro Monat",{"v":30,"d":"30.00"}]
[{"$nulls":4},"- Kilometer / Weg (Fahrt)",{"$nulls":8},{"$f":"IF(A63=2,Fragebogen!N65,0)","v":0},"Konstante: Fahrrad pauschal pro Monat",{"v":15,"d":"15.00"}]
[{"$nulls":4},"- Anzahl Fahrten / Tag",{"$nulls":8},{"$f":"IF(A63=2,Fragebogen!N66,0)","v":0},"Errechnet: Max. CHF Betrag GA 2. Klasse / Monat",{"$f":"P63/12","v":{"v":321.6666666666667,"d":"321.67"}}]
[{"$nulls":4},"- Anzahl Arbeitstage / Monat (max. 20)",{"$nulls":8},{"$f":"IF(A63=2,IF(P72>P65,P65,P72),0)","v":0},"Errechnet: Max. CHF Betrag für Fzg mit Kompetenzqualität / Monat",{"$f":"P64/12","v":{"v":875,"d":"875.00"}}]
[{"$nulls":13},{"$f":"IF(A63=3,P66,0)","v":0},"Erfasste: Kosten für ÖV",{"$f":"Fragebogen!N62","v":0}]
[{"$nulls":13},{"$f":"IF(A63=4,P67,0)","v":0},"Erfasste: Fahrkosten mit privat Fahrzeug / Monat",{"$f":"IF(A63=2,N67*N68*P62*N69,0)","v":0}]
[{"$nulls":13},{"$f":"IF(A63=5,0,0)","v":0},"Erfasste: Arbeitstage / Monat",{"$f":"Fragebogen!N67","v":0}]
[]
[null,null,{"$f":"Fragebogen!C72","v":"4.9"},{"$f":"Fragebogen!D72","v":"Notwendige Berufsauslagen für auswärtige Verpflegung"},{"$nulls":9},{"$f":"Fragebogen!N72","v":0}]
[null,null,{"$f":"Fragebogen!C73","v":"4.10"},{"$f":"Fragebogen!D73","v":"Miet- / Leasing-Kosten unverzichtbarer Gegenstände zur Ausübung der Erwerbstätigkeit"},{"$nulls":9},{"$f":"Fragebogen!N73","v":0}]
[null,null,{"$f":"Fragebogen!C74","v":"4.11"},{"$f":"Fragebogen!D74","v":"Darlehen- und Schuldenrückzahlungen"},{"$nulls":9},{"$f":"Fragebogen!N74","v":0}]
[null,null,{"$f":"Fragebogen!C75","v":"4.12"},{"$f":"Fragebogen!D75","v":"Diverse Ausgaben"},{"$nulls":9},{"$f":"Fragebogen!N75","v":0}]
[{"$nulls":3},{"$f":"Fragebogen!D76:M76","v":" "}]
[]
[]
[null,"5.","Vermögenswerte",{"$nulls":10},{"$f":"Fragebogen!N79","v":"in CHF"}]
[null,null,{"$f":"Fragebogen!C80","v":5.1},{"$f":"Fragebogen!D80","v":"Wertschriften (Konti, Obligationen, Aktien, etc.)"},{"$nulls":9},{"$f":"Fragebogen!N80","v":0}]
[null,null,{"$f":"Fragebogen!C81","v":"5.2"},{"$f":"Fragebogen!D81","v":"Lebensversicherungen (Rückkaufswerte)"},{"$nulls":9},{"$f":"Fragebogen!N81","v":0}]
[null,null,{"$f":"Fragebogen!C82","v":"5.3"},{"$f":"Fragebogen!D82","v":"Liegenschaften (Verkehrswert nach amtlicher Schatzung)"}]
[null,null,{"$f":"Fragebogen!C83","v":"5.3a"},{"$f":"Fragebogen!D83","v":"Parzellen-Nr.:"},null,{"$f":"IF(Fragebogen!F83:M83<>0,Fragebogen!F83:M83,\"\")","v":""},{"$nulls":7},{"$f":"Fragebogen!N83","v":0}]
[{"$nulls":3},{"$f":"Fragebogen!D84","v":"Adresse:    "},null,{"$f":"IF(Fragebogen!F84:M84<>0,Fragebogen!F84:M84,\"\")","v":""}]
[null,null,{"$f":"Fragebogen!C85","v":"5.3b"},{"$f":"Fragebogen!D85","v":"Parzellen-Nr.:"},null,{"$f":"IF(Fragebogen!F85:M85<>0,Fragebogen!F85:M85,\"\")","v":""},{"$nulls":7},{"$f":"Fragebogen!N85","v":0}]
[{"$nulls":3},{"$f":"Fragebogen!D86","v":"Adresse:    "},null,{"$f":"IF(Fragebogen!F86:M86<>0,Fragebogen!F86:M86,\"\")","v":""}]
[null,null,{"$f":"Fragebogen!C87","v":"5.4"},{"$f":"Fragebogen!D87","v":"Weiteres Vermögen (Beteiligungen, unverteilte Erbschaften, usw.)"},{"$nulls":9},{"$f":"Fragebogen!N87","v":0}]
[]
[{"$nulls":13},{"$f":"SUM(N82:N89)","v":0}]
[null,"6","Schulden",{"$nulls":10},{"$f":"Fragebogen!N90","v":"in CHF"}]
[null,null,{"$f":"Fragebogen!C91","v":"6.1"},{"$f":"Fragebogen!D91","v":"Art:"},null,{"$f":"IF(Fragebogen!F91:M91<>0,Fragebogen!F91:M91,\"\")","v":""},{"$nulls":7},{"$f":"Fragebogen!N91","v":0}]
[{"$nulls":3},{"$f":"Fragebogen!D92","v":"Gläubiger"},null,{"$f":"IF(Fragebogen!F92:M92<>0,Fragebogen!F92:M92,\"\")","v":""}]
[null,null,{"$f":"Fragebogen!C93","v":"6.2"},{"$f":"Fragebogen!D93","v":"Art:"},null,{"$f":"IF(Fragebogen!F93:M93<>0,Fragebogen!F93:M93,\"\")","v":""},{"$nulls":7},{"$f":"Fragebogen!N93","v":0}]
[{"$nulls":3},{"$f":"Fragebogen!D94","v":"Gläubiger"},null,{"$f":"IF(Fragebogen!F94:M94<>0,Fragebogen!F94:M94,\"\")","v":""}]
[null,null,{"$f":"Fragebogen!C95","v":"6.3"},{"$f":"Fragebogen!D95","v":"Art:"},null,{"$f":"IF(Fragebogen!F95:M95<>0,Fragebogen!F95:M95,\"\")","v":""},{"$nulls":7},{"$f":"Fragebogen!N95","v":0}]
[{"$nulls":3},{"$f":"Fragebogen!D96","v":"Gläubiger"},null,{"$f":"IF(Fragebogen!F96:M96<>0,Fragebogen!F96:M96,\"\")","v":""}]
[null,null,{"$f":"Fragebogen!C97","v":"6.4"},{"$f":"Fragebogen!D97","v":"Art:"},null,{"$f":"IF(Fragebogen!F97:M97<>0,Fragebogen!F97:M97,\"\")","v":""},{"$nulls":7},{"$f":"Fragebogen!N97","v":0}]
[{"$nulls":3},{"$f":"Fragebogen!D98","v":"Gläubiger"},null,{"$f":"IF(Fragebogen!F98:M98<>0,Fragebogen!F98:M98,\"\")","v":""}]
[null,null,{"$f":"Fragebogen!C99","v":"6.5"},{"$f":"Fragebogen!D99","v":"Art:"},null,{"$f":"IF(Fragebogen!F99:M99<>0,Fragebogen!F99:M99,\"\")","v":""},{"$nulls":7},{"$f":"Fragebogen!N99","v":0}]
[{"$nulls":3},{"$f":"Fragebogen!D100","v":"Gläubiger"},null,{"$f":"IF(Fragebogen!F100:M100<>0,Fragebogen!F100:M100,\"\")","v":""}]
[null,null,{"$f":"Fragebogen!C101","v":"6.6"},{"$f":"Fragebogen!D101","v":"Art:"},null,{"$f":"IF(Fragebogen!F101:M101<>0,Fragebogen!F101:M101,\"\")","v":""},{"$nulls":7},{"$f":"Fragebogen!N101","v":0}]
[{"$nulls":3},{"$f":"Fragebogen!D102","v":"Gläubiger"},null,{"$f":"IF(Fragebogen!F102:M102<>0,Fragebogen!F102:M102,\"\")","v":""}]
[null,null,{"$f":"Fragebogen!C103","v":"6.7"},{"$f":"Fragebogen!D103","v":"Art:"},null,{"$f":"IF(Fragebogen!F103:M103<>0,Fragebogen!F103:M103,\"\")","v":""},{"$nulls":7},{"$f":"Fragebogen!N103","v":0}]
[{"$nulls":3},{"$f":"Fragebogen!D104","v":"Gläubiger"},null,{"$f":"IF(Fragebogen!F104:M104<>0,Fragebogen!F104:M104,\"\")","v":""}]
[null,null,{"$f":"Fragebogen!C105","v":"6.8"},{"$f":"Fragebogen!D105","v":"Art:"},null,{"$f":"IF(Fragebogen!F105:M105<>0,Fragebogen!F105:M105,\"\")","v":""},{"$nulls":7},{"$f":"Fragebogen!N105","v":0}]
[{"$nulls":3},{"$f":"Fragebogen!D106","v":"Gläubiger"},null,{"$f":"IF(Fragebogen!F106:M106<>0,Fragebogen!F106:M106,\"\")","v":""}]
[]
[{"$nulls":13},{"$f":"SUM(N93:N108)","v":0}]
[null,{"$f":"Fragebogen!B109","v":"Leisten (nicht privilegierte) Gläubiger Forderungsverzicht?  Ja / Nein:"},{"$nulls":10},{"$f":"Fragebogen!M109","v":"___"}]
[]
[null,"Bemerkungen"]

{"sheet":"Berechnung","index":2,"n_rows":66,"n_cols":15,"rows_kept":66,"hidden":true,"merged":[[0,0,1,0],[0,4,0,13],[1,1,1,13],[2,11,2,13],[3,11,3,13],[4,11,4,13],[5,1,5,13],[7,2,7,13],[8,2,8,4],[8,5,8,6],[8,12,8,13],[9,2,9,4],[9,5,9,13],[10,2,10,4],[10,5,10,13],[11,2,11,4],[11,7,11,13],[12,2,12,4],[12,5,12,6],[12,7,12,9],[12,10,12,13],[13,2,13,4],[13,5,13,9],[13,11,13,12],[14,2,14,4],[14,11,14,12],[15,2,15,4],[15,7,15,9],[15,12,15,13],[17,2,17,13],[18,2,18,4],[18,6,18,13],[19,2,19,4],[19,7,19,9],[19,12,19,13],[21,1,21,12],[21,13,22,13],[22,2,22,12],[23,3,23,12],[24,3,24,12],[25,3,25,12],[26,3,26,12],[27,3,27,12],[28,3,28,12],[29,3,29,12],[30,3,30,12],[31,1,31,12],[34,2,34,12],[35,3,35,12],[36,11,36,12],[37,11,37,12],[38,3,38,7],[38,11,38,12],[39,4,39,5],[39,6,39,7],[39,11,39,12],[40,3,40,12],[41,3,41,12],[42,3,42,12],[43,3,43,12],[44,3,44,12],[45,3,45,12],[46,3,46,12],[47,3,47,12],[48,3,48,12],[49,3,49,12],[50,3,50,12],[51,3,51,12],[52,3,52,12],[53,1,53,12],[54,1,54,12],[56,1,56,7],[57,3,57,6],[58,3,58,6],[59,3,59,6],[60,3,60,6],[61,1,61,7],[64,1,64,3],[64,4,64,13],[65,1,65,13]]}
[{"$nulls":4},"Steuerverwaltung des Kantons Graubünden  \nAdministraziun da taglia dal Chantun Grischun     \nAmministrazione imposte del Cantone dei Grigioni ",{"$nulls":9},"Bemerkungen intern, ohne Anzeige an den Kunden"]
[null,"Abteilung Rechnungswesen, Steinbruchstrasse 18, CH-7001 Chur    "]
[null,"Sachbearbeiter:",null,null,{"$f":"Bearbeitung!E3","v":"Rechnungswesen"},{"$nulls":5},"Tel:",{"$f":"Bearbeitung!L3","v":"081 257 33 18"}]
[null,"Mail:",null,null,{"$f":"Bearbeitung!E4","v":"rechnungswesen@stv.gr.ch"},{"$nulls":5},"Fax:",{"$f":"Bearbeitung!L4","v":"081 257 20 14"}]
[{"$nulls":10},"Datum:",{"$f":"Bearbeitung!L5","v":""}]
[null,{"$f":"VLOOKUP(Bearbeitung!A4,Textkonserven!A:C,3,FALSE)","v":"Berechnung der Vermögens- und Erwerbsverhältnisse im Zusammenhang mit einem Erlassgesuch für Steuerforderungen"}]
[]
[null,"1.",{"$f":"Bearbeitung!C13","v":"Personalien Pflichtige/r"}]
[null,null,{"$f":"Bearbeitung!B7","v":"Register-Nr. "},null,null,{"$f":"IF(Bearbeitung!E7<>\"\",Bearbeitung!E7,\"\")","v":""}]
[null,null,{"$f":"Bearbeitung!C14","v":"Name / Vorname"},null,null,{"$f":"IF(Bearbeitung!F14<>\"\",Bearbeitung!F14&\" \"&Bearbeitung!J14,\"\")","v":""}]
[null,null,{"$f":"Bearbeitung!C15","v":"Adresse"},null,null,{"$f":"IF(Bearbeitung!F15<>\"\",Bearbeitung!F15,\"\")","v":""}]
[null,null,{"$f":"Bearbeitung!C16","v":"PLZ / Ort"},null,null,{"$f":"IF(Bearbeitung!F16<>\"\",Bearbeitung!F16,\"\")","v":""},"/",{"$f":"IF(Bearbeitung!H16<>\"\",Bearbeitung!H16,\"\")","v":""}]
[null,null,{"$f":"Bearbeitung!C17","v":"Geburtsdatum"},null,null,{"$f":"IF(Bearbeitung!F17>0,Bearbeitung!F17,\"\")","v":""}]
[null,null,{"$f":"Bearbeitung!C18","v":"Arbeitgeber"},null,null,{"$f":"IF(Bearbeitung!F18<>\"\",Bearbeitung!F18,\"\")","v":" "},{"$nulls":4},"/",{"$f":"Bearbeitung!L18","v":"Arbeitsort "},null,{"$f":"IF(Bearbeitung!N18<>\"\",Bearbeitung!N18,\"\")","v":""}]
[null,null,{"$f":"Bearbeitung!C19","v":"Arbeitspensum in %"},null,null,{"$f":"IF(Bearbeitung!F19<>\"\",Bearbeitung!F19,\"\")","v":""}]
[]
[]
[null,"2.","Anzahl Personen im gleichen Haushalt lebend (siehe Wegleitung)"]
[{"$f":"Bearbeitung!A23","v":0},null,{"$f":"Bearbeitung!C23","v":"Anzahl Erwachsene:"},null,null,{"$f":"Bearbeitung!F23","v":""},{"$nulls":8},{"$f":"IF(Bearbeitung!O23<>\"\",Bearbeitung!O23,\"\")","v":""}]
[]
[]
[null,"Monatsbudget",{"$nulls":11},{"$f":"Bearbeitung!N39","v":"in CHF"}]
[null,"3.","Einkünfte pro Monat"]
[null,null,{"$f":"Bearbeitung!C41","v":3.1},{"$f":"Bearbeitung!D41","v":"Nettolohn II gemäss Lohnausweis"},{"$nulls":9},{"$f":"Bearbeitung!N41","v":0},{"$f":"IF(Bearbeitung!O41<>\"\",Bearbeitung!O41,\"\")","v":""}]
[null,null,{"$f":"Bearbeitung!C42","v":3.2},{"$f":"Bearbeitung!D42","v":"Weitere Einkünfte (Nebenerwerb, Naturalbezüge, Mieteinnahmen, Reisespesen, etc.)"},{"$nulls":9},{"$f":"Bearbeitung!N42","v":0},{"$f":"IF(Bearbeitung!O42<>\"\",Bearbeitung!O42,\"\")","v":""}]
[null,null,{"$f":"Bearbeitung!C43","v":3.3},{"$f":"Bearbeitung!D43","v":"Ersatzeinkommen (AHV/IV, ALV, Pensionskasse, andere Renten)"},{"$nulls":9},{"$f":"Bearbeitung!N43","v":0},{"$f":"IF(Bearbeitung!O43<>\"\",Bearbeitung!O43,\"\")","v":""}]
[null,null,{"$f":"Bearbeitung!C44","v":3.4},{"$f":"Bearbeitung!D44","v":"Ergänzungsleistungen AHV/IV"},{"$nulls":9},{"$f":"Bearbeitung!N44","v":0},{"$f":"IF(Bearbeitung!O44<>\"\",Bearbeitung!O44,\"\")","v":""}]
[null,null,{"$f":"Bearbeitung!C45","v":3.5},{"$f":"Bearbeitung!D45","v":"Unterhalts- / Unterstützungsbeiträge"},{"$nulls":9},{"$f":"Bearbeitung!N45","v":0},{"$f":"IF(Bearbeitung!O45<>\"\",Bearbeitung!O45,\"\")","v":""}]
[null,null,{"$f":"Bearbeitung!C46","v":3.6},{"$f":"Bearbeitung!D46","v":"Vermögenserträge (Wertschriften und Kontoguthaben)"},{"$nulls":9},{"$f":"Bearbeitung!N46","v":0},{"$f":"IF(Bearbeitung!O46<>\"\",Bearbeitung!O46,\"\")","v":""}]
[null,null,{"$f":"Bearbeitung!C47","v":3.7},{"$f":"Bearbeitung!D47","v":"Prämienverbilligung Krankenkasse (IPV)"},{"$nulls":9},{"$f":"Bearbeitung!N47","v":0},{"$f":"IF(Bearbeitung!O47<>\"\",Bearbeitung!O47,\"\")","v":""}]
[]
[null,"Total Einkünfte pro Monat",{"$nulls":11},{"$f":"SUM(N24:N30)","v":0}]
[]
[]
[null,"4.","Auslagen pro Monat",{"$nulls":10},{"$f":"IF(Bearbeitung!N50<>\"\",Bearbeitung!N50,\"\")","v":"in CHF"}]
[null,null,{"$f":"Bearbeitung!C51","v":4.1},{"$f":"Bearbeitung!D51","v":"Grundbetrag für Ernährung, Kleider, Gesundheit, Erholung, Telefon, usw."}]
[{"$f":"Bearbeitung!A52","v":false},{"$nulls":3},0,{"$nulls":6},{"$f":"Bearbeitung!L52","v":{"v":1200,"d":"CHF 1,200"}},null,{"$f":"Bearbeitung!N52","v":""}]
[{"$nulls":11},{"$f":"Bearbeitung!L53","v":{"v":1350,"d":"CHF 1,350"}},null,{"$f":"Bearbeitung!N53","v":""}]
[{"$nulls":4},1,{"$nulls":6},{"$f":"Bearbeitung!L54","v":{"v":1700,"d":"CHF 1,700"}},null,{"$f":"Bearbeitung!N54","v":""}]
[{"$nulls":3},{"$f":"Bearbeitung!D55","v":0},{"$f":"Bearbeitung!E55","v":"Kinder bis 10 Jahre:"},null,{"$f":"Bearbeitung!G55","v":{"v":400,"d":"CHF 400"}},null,{"$f":"Bearbeitung!I55","v":0},{"$f":"Bearbeitung!J55","v":"über 10 Jahre"},null,{"$f":"Bearbeitung!L55","v":{"v":600,"d":"CHF 600"}},null,{"$f":"Bearbeitung!N55","v":0}]
[null,null,"4.1a","Erhöhung um 20% des Grundbetrags",{"$nulls":9},{"$f":"SUM(N37:N40)*0.2","v":0}]
[null,null,{"$f":"Bearbeitung!C56","v":4.2},{"$f":"Bearbeitung!D56","v":"Unterhalts- / Unterstützungsbeiträge"},{"$nulls":9},{"$f":"Bearbeitung!N56","v":0},{"$f":"IF(Bearbeitung!O56<>\"\",Bearbeitung!O56,\"\")","v":""}]
[null,null,{"$f":"Bearbeitung!C57","v":"4.3"},{"$f":"Bearbeitung!D57","v":"Entweder Mietzins inkl. Akontozahlungen für Heiz- und Nebenkosten"},{"$nulls":9},{"$f":"Bearbeitung!N57","v":0},{"$f":"IF(Bearbeitung!O57<>\"\",Bearbeitung!O57,\"\")","v":""}]
[null,null,{"$f":"Bearbeitung!C58","v":"4.4"},{"$f":"Bearbeitung!D58","v":"oder Hypothekarzins (ohne Amortisation!)\ninkl. öffentlich rechtliche Abgaben und Unterhaltskosten für die Liegenschaft"},{"$nulls":9},{"$f":"Bearbeitung!N58","v":0},{"$f":"IF(Bearbeitung!O58<>\"\",Bearbeitung!O58,\"\")","v":""}]
[null,null,{"$f":"Bearbeitung!C59","v":"4.5"},{"$f":"Bearbeitung!D59","v":"Krankenkasse (Grundversicherung)"},{"$nulls":9},{"$f":"Bearbeitung!N59","v":0},{"$f":"IF(Bearbeitung!O59<>\"\",Bearbeitung!O59,\"\")","v":""}]
[null,null,{"$f":"Bearbeitung!C60","v":"4.6"},{"$f":"Bearbeitung!D60","v":"Sozialbeiträge, sofern nicht bereits vom Lohn abgezogen"},{"$nulls":9},{"$f":"Bearbeitung!N60","v":0},{"$f":"IF(Bearbeitung!O60<>\"\",Bearbeitung!O60,\"\")","v":""}]
[null,null,{"$f":"Bearbeitung!C61","v":"4.7"},{"$f":"Bearbeitung!D61","v":"Laufende Steuern (Bund, Kanton und Gemeinde) umgerechnet auf 1 Monat"},{"$nulls":9},{"$f":"Bearbeitung!N61","v":0},{"$f":"IF(Bearbeitung!O61<>\"\",Bearbeitung!O61,\"\")","v":""}]
[null,null,{"$f":"Bearbeitung!C62","v":"4.8"},{"$f":"Bearbeitung!D62","v":"Notwendige Berufsauslagen für Fahrkosten"},{"$nulls":9},{"$f":"IF(Bearbeitung!A63=0,0,IF(Bearbeitung!A63=1,Bearbeitung!N64,IF(Bearbeitung!A63=2,Bearbeitung!N65,IF(Bearbeitung!A63=3,Bearbeitung!N70,IF(Bearbeitung!A63=4,Bearbeitung!N71,IF(Bearbeitung!A63=5,Bearbeitung!N72,0))))))","v":0}]
[null,null,{"$f":"Bearbeitung!C74","v":"4.9"},{"$f":"Bearbeitung!D74","v":"Notwendige Berufsauslagen für auswärtige Verpflegung"},{"$nulls":9},{"$f":"Bearbeitung!N74","v":0},{"$f":"IF(Bearbeitung!O74<>\"\",Bearbeitung!O74,\"\")","v":""}]
[null,null,{"$f":"Bearbeitung!C75","v":"4.10"},{"$f":"Bearbeitung!D75","v":"Miet- / Leasing-Kosten unverzichtbarer Gegenstände zur Ausübung der Erwerbstätigkeit"},{"$nulls":9},{"$f":"Bearbeitung!N75","v":0},{"$f":"IF(Bearbeitung!O75<>\"\",Bearbeitung!O75,\"\")","v":""}]
[null,null,{"$f":"Bearbeitung!C76","v":"4.11"},{"$f":"Bearbeitung!D76","v":"Darlehen- und Schuldenrückzahlungen"},{"$nulls":9},{"$f":"Bearbeitung!N76","v":0},{"$f":"IF(Bearbeitung!O76<>\"\",Bearbeitung!O76,\"\")","v":""}]
[null,null,{"$f":"Bearbeitung!C77","v":"4.12"},{"$f":"Bearbeitung!D77","v":"Diverse Ausgaben"},{"$nulls":9},{"$f":"Bearbeitung!N77","v":0},{"$f":"IF(Bearbeitung!O77<>\"\",Bearbeitung!O77,\"\")","v":""}]
[{"$nulls":3},{"$f":"Bearbeitung!D78","v":" "},{"$nulls":10},{"$f":"IF(Bearbeitung!O78<>\"\",Bearbeitung!O78,\"\")","v":""}]
[]
[null,"Total Auslagen pro Monat",{"$nulls":11},{"$f":"SUM(N37:N53)","v":0}]
[]
[null,"Übersicht aller Einzeltotale pro Monat",{"$nulls":11},"in CHF"]
[null,null,"1.","Einkünfte",{"$nulls":3}," +",{"$nulls":5},{"$f":"N32","v":{"v":0,"d":"0 "}}]
[null,null,"2.","Auslagen",{"$nulls":3}," -",{"$nulls":5},{"$f":"N55","v":{"v":0,"d":"0 "}}]
[null,null,"3.","Vermögenswerte",{"$nulls":9},{"$f":"Bearbeitung!N91","v":{"v":0,"d":"0 "}}]
[null,null,"4.","Schulden",{"$nulls":9},{"$f":"Bearbeitung!N110","v":{"v":0,"d":"0 "}}]
[null,"Saldo (negativ = Manko, positiv = Überschuss)",{"$nulls":11},{"$f":"SUM(N58-N59)","v":{"v":0,"d":"0 "}}]
[]
[]
[null,"Bemerkungen"]
[null,{"$f":"IF(Bearbeitung!B114<>\"\",Bearbeitung!B114,\"\")","v":""}]

{"sheet":"Wegleitung","index":3,"n_rows":46,"n_cols":5,"rows_kept":46,"merged":[[0,0,0,1],[0,3,0,4],[1,0,1,4],[3,0,3,4],[4,0,4,4],[5,0,5,4],[6,1,6,4],[7,1,7,4],[8,1,8,3],[9,0,9,4],[10,1,10,4],[11,1,11,4],[12,1,12,4],[13,1,13,4],[14,1,14,4],[15,1,15,4],[16,1,16,4],[17,1,17,4],[18,1,18,4],[19,1,19,3],[20,0,20,4],[21,1,21,3],[22,1,22,3],[23,1,23,3],[24,1,24,3],[25,1,25,3],[26,1,26,3],[27,1,27,3],[28,1,28,3],[29,1,29,3],[30,1,30,3],[31,1,31,3],[32,1,32,3],[33,1,33,3],[34,1,34,4],[35,1,35,3],[36,0,36,4],[37,1,37,4],[38,1,38,4],[39,1,39,4],[40,1,40,4],[41,1,41,4],[42,1,42,3],[43,0,43,4],[44,1,44,4],[45,1,45,4]]}
[{"$nulls":3},"Steuerverwaltung des Kantons Graubünden  \nAdministraziun da taglia dal Chantun Grischun     \nAmministrazione imposte del Cantone dei Grigioni "]
["Abteilung Rechnungswesen, Steinbruchstrasse 18, CH-7001 Chur    "]
[]
["Wegleitung zur Prüfung der Vermögens- und Erwerbsverhältnisse"]
["Für alle im Formular \"Überprüfung der Vermögens- und Erwerbsverhältnisse\" ausgefüllten Positionen sind entsprechende Belege und Dokumente als Nachweis zu erbringen. Auslagen ohne Belegnachweis werden nicht zum Abzug zugelassen. Die untenstehende Auflistung (nicht abschliessend) beinhaltet allfällig vorhandene Nachweise."]
["Anzahl Personen im gleichen Haushalt"]
["Nr.","Hinweise/Bemerkungen"]
["2","Name der Kinder: \nAufzuführen sind die Kinder der antragstellenden Person, welche zum heutigen Zeitpunkt jünger als 18 Jahre sind. Werden Kinder über 18 Jahre  aufgeführt, ist der Nachweis zu erbringen, dass sie noch in der 1. Ausbildung sind, d.h. Lehrvertrag und die Lohnabrechnungen der letzten 3 Monate. \n\nLebenssituation:\nZutreffende Situation ankreuzen."]
[]
["Einkünfte pro Monat"]
["Nr.","Einzureichende Unterlagen (keine Originale)"]
["3","Steuererklärung Vorjahr inkl. Beilagen"]
["3.1","Lohnausweis Vorjahr plus Lohnabrechnungen der letzten 3 Monate"]
[3.2,"Eingangsbelege"]
[3.3,"Eingangsbelege"]
[3.4,"Eingangsbelege"]
[3.5,"Eingangsbelege"]
[3.6,"Eingangsbelege"]
[3.7,"Eingangsbelege"]
[]
["Auslagen pro Monat"]
["Nr.","Einzureichende Unterlagen (keine Originale)",null,null,"Erläuterungen"]
["4.1",{"$nulls":3},"Der Grundbetrag beinhaltet Auslagen für Nahrung, Kleidung und Wäsche einschliesslich deren Instandhaltung. Körper- und Gesundheitspflege, Unterhalt der Wohnungseinrichtung, Telefon, Internet, Radio- und Fernsehgebühren (Serafe), Privatversicherungen (u.a. Haftpflicht, Hausrat etc.), Kulturelles, Auslagen für Beleuchtung sowie Kochstrom/-gas, der jeweiligen Lebenssituation der antragstellenden Person angepasst."]
[4.2,"Alimente - Scheidungs- oder Trennungsurteil mit Rechtskraft und Zahlungsbeleg der letzten 3 Monate"]
[4.3,"Mietvertrag",null,null,"Wohnkosten bei Miete, bestehend aus:\n\n- Effektiver Mietzins aber ohne Auslagen des Grundbetrages (vgl. Nr. 4.1), weil dort bereits berücksichtigt. \n\n- Nebenkosten sind Aufwendungen wie Beheizung, Wasser, Hauswartung, Umgebungsunterhalt, die durchschnittlich auf 12 Monate verteilt, angerechnet werden.\n\nBei einer Wohngemeinschaft (eingeschlossen mündige Kinder mit eigenem Einkommen) sind die Wohnkosten anteilsmässig zu gleichen Teilen zu berücksichtigen."]
[4.4,"Hypothekarvertrag inkl. Bankauszüge der 3 letzten bezahlten Zinsrechnungen\n\nZahlungsbelege für öffentlich rechtliche Abgaben und Unterhaltskosten",null,null,"Wohnkosten bei selbstbewohntem Eigentum, bestehend aus:\n\n- Hypothekarzins ohne Amortisation und ohne Auslagen des Grundbetrages (vgl. Nr. 4.1), da dort bereits berücksichtigt.\n\n- Liegenschaftsaufwand, wie Beheizung, Wasser, Unterhalt, Reparaturen, Reinigungen, Versicherungen, öffentliche Abgaben, durchschnittlich auf 12 Monate verteilt. \n\nBei einer Wohngemeinschaft (eingeschlossen mündige Kinder mit eigenem Einkommen) sind die Wohnkosten anteilsmässig zu gleichen Teilen zu berücksichtigen."]
[4.5,"aktuellste Krankenkassenpolice",null,null,"Nur Grundversicherung, Zusatzversicherung gehört zum Grundbetrag, vgl. Nr. 4.1. \n\nBetreffend Franchise und selbst zu tragende Arztkosten, vgl. Nr. 4.12.\n"]
["4.6","Zahlungsbelege"]
["4.7","Steuerrechnungen der aktuellen Steuerperiode",null,null,"Umgerechnet auf 1 Monat, d.h. \n(Summe der Steuerrechnungen / 12)"]
["4.8","Tickets, Abos, Streckennachweis, Unterlagen für den Nachweis der Kompetenzqualität 1) , etc.",null,null,"Sofern Sie ausser Haus arbeiten, wählen Sie das von Ihnen verwendete \"Transportmittel\":\n  - im Falle des öffentlichen Verkehrs, bzw. beim Einsatz des privaten Fahrzeugs ohne nachgewiesene Kompetenzqualität 1) tragen Sie die effektiven, bzw. gerechneten Kosten im grauen Feld neben dem Auswahlfeld ein.\n\n  - im Falle der Verwendung des privaten Fahrzeugs mit Kompetenzqualität 1), tragen Sie die Kilometer pro Weg, die Anzahl der Fahrten pro Tag, sowie die durchschnittliche Anzahl Tage pro Monat ein, die Sie zur Arbeit fahren (max. 20 Tage).\n\n  - legen Sie den Arbeitsweg mit dem Motorfahrrad, dem Fahrrad oder zu Fuss zurück, kreuzen Sie die entsprechende Auswahl, ohne weitere Angaben an."]
["4.9",{"$nulls":3},"Abgerechnet werden können, bei einem Arbeitspensum von 100%:\n - 10 CHF pro Tag ohne Essensvergünstigung\n - 5 CHF pro Tag mit Essensvergünstigung\n - max. 20 Tage pro Monat\n\nbei einem geringeren Arbeitspensum werden sind die Anzahl Tage entsprechend zu reduzieren."]
["4.10","Miet- und Leasingverträge\nNachweis der Kompetenzqualität )1",null,null,"Bei fehlender Kompetenzqualität )1 kann ein/e Leasing/Miete nicht berücksichtigt werden.\n\nBei gegebener Kompetenzqualität )1 werden Leasing-, bzw. eine Miet-Raten für einen Leasing/Miet-Wert von max. CHF 30'000 berücksichtigt."]
["4.11","Veranlagungen für Steuerschulden, sowie \nVerträge und die letzten 3 Zahlungsbelege",null,null,"Akzeptierte Rückzahlungen sind bspw.:\n - alte Steuerschulden \n - Darlehen von Dritten (Privat), je nach Schuldgrund \n \nNicht akzeptierte Rückzahlungen sind bspw.:\n - Kreditkartenschulden, Schulden aus Grundbetrag\n - Schulden aus Konsum von \"Luxus\"-Gütern\n"]
["4.12","Zahlungsbelege",null,null,"Abgerechnet werden können:\n- von der Krankenkasse nicht übernommene, offene Arztkosten (z.B. wegen Franchise, Selbstbehalt)\n\n- Zahnarztkosten (nur offene Rechnungen mit Rückzahlungsnachweisen)\n\n- Schulung der Kinder (ÖV, Schulmaterial) bis zum Abschluss der ersten Schul-/Lehrausbildung\n\nNicht abgerechnet werden können (Aufzählung nicht abschliessend):\n- Krankenkasse-Franchise (sondern nur konkrete Arztkosten im Rahmen der Franchise)\n\n- Ausgaben mit \"Luxus\"-Charakter (z.B. Zigaretten, Haustiere, Hobby, Mitgliederbeiträge etc.)\n\n- Kosten Privatschule, wenn gleichartige öffentliche Schule zur Verfügung steht\n\n- Ausgaben für Wochenendbesuche der Kinder"]
[null,"\n)1 Kompetenzqualität bedeutet: \n- ÖV fehlt oder ist nicht zumutbar (z.B. Krankheit, Handicap, aufgrund der Arbeitszeiten) oder \n- mit dem privaten Auto wird eine Zeitersparnis von mehr als einer Stunde pro Tag erzielt."]
[]
["Vermögenswerte"]
["Nr.","Einzureichende Unterlagen (keine Originale)"]
["5.1","Depot-/Kontoauszüge der letzten 3 Monate"]
[5.2,"Aktuellste Versicherungspolice"]
[5.3,"Neueste amtliche Schatzung"]
[5.4,"Belege"]
[]
["Schulden"]
["Nr.","Einzureichende Unterlagen (keine Originale)"]
["6.1","Verträge"]

{"sheet":"Sachbearbeiter","index":4,"n_rows":9,"n_cols":5,"rows_kept":9,"hidden":true}
["Kurzzeichen","Sachbearbeiter","Tel.","Fax","Mail"]
["Cr","Cris Raselli","081 257 34 78","081 257 20 14","Cris.Raselli@stv.gr.ch"]
["Gr","Gladys Rösli","081 257 34 94","081 257 20 14","Gladys.Roesli@stv.gr.ch"]
["Kd","Katja Duff","081 257 34 86","081 257 20 14","Katja.Duff@stv.gr.ch"]
["Ft","Fabian Tschuor","081 257 34 96","081 257 20 14","Fabian.Tschuor@stv.gr.ch"]
["Ps","Pascale Schumacher ","081 257 34 98","081 257 20 14","Pascale.Schumacher@stv.gr.ch"]
["Gg","Gion Giovannoni","081 257 34 70","081 257 20 14","Gion.Giovannoni@stv.gr.ch"]
["As","Alexander Schlegel","081 257 34 62","081 257 20 14","Alexander.Schlegel@stv.gr.ch"]
["Rw","Rechnungswesen","081 257 33 18","081 257 20 14","rechnungswesen@stv.gr.ch"]

{"sheet":"Textkonserven","index":5,"n_rows":5,"n_cols":11,"rows_kept":5,"hidden":true}
["Sachgebiet \na= amtl. Verteidig.\nu=URP\nv=VS\nE=Erlass","Dokumententitel Fragebogen","Dokumententitel Berechnungsformular","Referenz","Spaltentitel","Berechnungsübersicht Titel in CHF","Berechnungsübersicht Titel in %","Berechnungsüberisicht Titel Anteil am Manko","Überschrift \"Personalien\"","Fusszeile bzgl. \"Forderungsverzicht\" Zeile-1","Fusszeile bzgl. \"Forderungsverzicht\" Zeile-2"]
["a","Überprüfung der Vermögens- und Erwerbsverhältnisse im Zusammenhang mit der Rückerstattung einer amtlichen Verteidigung","Berechnung der Vermögens- und Erwerbsverhältnisse im Zusammenhang mit der Rückerstattung einer amtlichen Verteidigung","Dossier-Nr.","Beansprucher amtliche Verteidigung \nCHF","Anteil \nBeansprucher amtliche Verteidigung in CHF","Anteil \nBeansprucher amtliche Verteidigung in %","Anteil Beansprucher amtliche Verteidigung in CHF am gemeinsamen Überschuss, bzw. Manko im Verhältnis zum Einkommen","Personalien des Beanspruchers einer amtlichen Verteidigung"]
["u","Überprüfung der Vermögens- und Erwerbsverhältnisse im Zusammenhang mit der Rückerstattung unentgeltlicher Rechtspflege (URP)","Berechnung der Vermögens- und Erwerbsverhältnisse im Zusammenhang mit der Rückerstattung unentgeltlicher Rechtspflege (URP)","Dossier-Nr.","URP-Partei\nCHF","Anteil \nURP-Partei in CHF","Anteil URP-\nPartei in %","Anteil der URP-Partei in CHF am gemeinsamen Überschuss, bzw. Manko im Verhältnis zum Einkommen","Personalien URP-Partei"]
["v","Überprüfung der Vermögens- und Erwerbsverhältnisse im Zusammenhang mit der Bewirtschaftung von Verlustscheinen","Berechnung der Vermögens- und Erwerbsverhältnisse im Zusammenhang mit der Bewirtschaftung von Verlustscheinen","Register-Nr. ","VS-Inhaber\nCHF","Anteil \nVS-Partei in CHF","Anteil VS-Partei \nin %","Anteil der VS-Partei in CHF am gemeinsamen Überschuss, bzw. Manko im Verhältnis zum Einkommen","Personalien VS-Partei","Leisten (nicht privilegierte) Gläubiger Forderungsverzicht?  Ja / Nein:","(Wenn ja, Sanierungsplan und Belege beifügen) "]
["e","Überprüfung der Vermögens- und Erwerbsverhältnisse im Zusammenhang mit einem Erlassgesuch für Steuerforderungen","Berechnung der Vermögens- und Erwerbsverhältnisse im Zusammenhang mit einem Erlassgesuch für Steuerforderungen","Register-Nr. ","Pflichtige/r\nCHF","Anteil \nPflichtige/r in CHF","Anteil Pflichtige/r \nin %","Anteil desPflichtigen in CHF am gemeinsamen Überschuss, bzw. Manko im Verhältnis zum Einkommen","Personalien Pflichtige/r","Leisten (nicht privilegierte) Gläubiger Forderungsverzicht?  Ja / Nein:","(Wenn ja, Sanierungsplan und Belege beifügen) "]